Workbook

Sheet Compte de résultat
A1: Compte de résultat 2018
A2: Charges (Dépenses) | F2: Produits (Recettes)
B3: 2016 | C3: 2017 | D3: 2018 | E3: Prév 2019 | G3: 2016 | H3: 2017 | I3: 2018 | J3: Prév 2019
A4: Achat marchandises | B4: =245+15+824.22 -> 1084.22 | C4: 371 | D4: 5168 | E4: 2000 | F4: Ventes (œuvres, livres, cartes...) | G4: 1172.5 | H4: 586 | I4: 5583 | J4: 3000
A5: Vataion de stock | F5: Adhésions | G5: 3373 | H5: 2404 | I5: 3598 | J5: 4204
A6: Eau électricité | B6: =120.6+275.4 -> 396 | C6: =417+478 -> 895 | D6: 771 | F6: Locations oeuvres | G6: 9193 | H6: 7937 | I6: 7945 | J6: 8000
A7: Founitures entretien et petit équipement | B7: =664.93+74 -> 738.93 | C7: =493 -> 493 | D7: =1399+439 -> 1838 | E7: 1800 | F7: Autres activités (dont médiations) | G7: =1196+215+1853+675+2469+3137.6+1802 -> 11347.6 | H7: 7340 | I7: =31515-I6-I5 -> 19972 | J7: 9000
A8: Fournitures administratives | B8: 1209.77 | C8: 969 | D8: 490 | F8: Total chiffre d'affaires | G8: =SUM(G4:G7) -> 25086.1 | H8: =SUM(H4:H7) -> 18267 | I8: =SUM(I4:I7) -> 37098 | J8: =SUM(J4:J7) -> 24204
A9: Achats Animations | B9: =39.95+4365.3+900+500+200+3063.36 -> 9068.61 | C9: 5445 | D9: =64.76+2662+481.32+2843.38+2523.88 -> 8575.34
A10: Com. sur location artothèque | B10: 5624.65 | C10: 5533 | D10: 5886 | E10: 14100 | F10: Production immobilisée
A11: Autres prestations de service | D11: 597 | F11: Subventions :
A12: Location matériel | B12: 540 | C12: 90 | D12: 274 | F12: Conseil régional | G12: 6000 | H12: 6000 | I12: 6000 | J12: 6000
A13: Convention d'occupation des locaux | B13: 2400 | C13: 2400 | D13: 2400 | E13: 2400 | F13: Conseil général 64 | G13: 14400 | H13: 14400 | I13: 17466 | J13: 16566
A14: Entretien Biens immobiliers mobiliers | C14: 786 | D14: 1793 | E14: 200 | F14: Communauté de commune de Nay | G14: 8000 | H14: 8000 | I14: 10000 | J14: 10000
A15: Assurance | B15: 675.33 | C15: 1197 | D15: 685 | E15: 700 | F15: Commune de Nay | G15: 1000 | H15: 1000 | I15: 1250 | J15: 1000
A16: Documentation | B16: 2.2 | E16: 70 | F16: Autres subventions
A17: Commission/ventes | F17: Total subventions | G17: =SUM(G12:G16) -> 29400 | H17: =SUM(H12:H16) -> 29400 | I17: =SUM(I12:I16) -> 34716 | J17: =SUM(J12:J16) -> 33566
A18: Honoraires expert comptable | B18: 2544 | C18: 2596 | D18: 2900 | E18: 2900
A19: Publicité communication | B19: =1600+3753.65+719.05 -> 6072.7 | C19: =1400+2703+769+61 -> 4933 | D19: 6299 | E19: 8000 | F19: Aide à l'emploi | G19: 6964.33
A20: Frais transport artistes et œuvres | B20: =1409+177.4 -> 1586.4 | C20: =900+388 -> 1288 | D20: =1240+382 -> 1622 | E20: 4100
A21: Frais de déplacement, réception | B21: =941.14+456.2+1087.99 -> 2485.33 | C21: =1198+761 -> 1959 | D21: =984+410+4948.38+673 -> 7015.38 | F21: Dons divers | G21: 300 | H21: 3905 | I21: 6650 | J21: 4000
A22: Frais télécommunication et postaux | B22: =27.59+154.44+2770.19 -> 2952.22 | C22: 1513 | D22: 1760 | F22: Total aides et dons | G22: =SUM(G19:G21) -> 7264.33 | H22: =SUM(H19:H21) -> 3905 | I22: =SUM(I19:I21) -> 6650 | J22: =SUM(J19:J21) -> 4000
A23: Services bancaires | B23: 166.11 | C23: 156 | D23: 216 | E23: 200
A24: Total achats et charges externes | B24: =SUM(B4:B23) -> 37546.47 | C24: 30624 | D24: =SUM(D4:D23) -> 48289.72 | E24: =SUM(E4:E23) -> 36470 | F24: Autres produits | I24: 900
A25: Impôts et taxes (dont form prof) | B25: 340 | C25: =348+132+259 -> 739 | D25: 372 | E25: 400
A26: Salaires et cotisations sociales | B26: =22222.69 -> 22222.69 | C26: =18909+2986 -> 21895 | D26: =20070+3961 -> 24031 | E26: 25800
A27: Amortissements | B27: 1091.25 | C27: 1117 | D27: 1956 | E27: 1500 | F27: Total produit divers | G27: =SUM(G24:G26) -> 0 | H27: =SUM(H24:H26) -> 0 | I27: 900 | J27: 0
A28: Total impôts, salaires et amort. | B28: =SUM(B25:B27) -> 23653.94 | C28: 23751 | D28: =SUM(D25:D27) -> 26359 | E28: =SUM(E25:E27) -> 27700
F29: Total produits d'exploitation | G29: =G22+G17+G10+G8+G27 -> 61750.43 | H29: 51572 | I29: =I22+I17+I10+I8+I27 -> 79364 | J29: =J22+J17+J10+J8+J27 -> 61770
A30: Total charges d'exploitation | B30: =B24+B28 -> 61200.41 | C30: 54375 | D30: =D24+D28 -> 74648.72 | E30: =E28+E24 -> 64170
A31: Charges financières | F31: Produits financiers (livret A) | G31: 29.76 | H31: 79 | I31: 46 | J31: 50
A33: Charges exceptionnelles | B33: =0.06+170 -> 170.06 | C33: 81 | F33: Produits exceptionnels | G33: =1.6+30 -> 31.6 | H33: 515 | I33: 154
A34: Engagements à réaliser sur dons | C34: 3905 | D34: 1576 | F34: Reprise des fonds dédiés | I34: 3905
A35: Total charges | B35: =B30+B31+B32+B33+B34 -> 61370.47 | C35: =C30+C31+C32+C33+C34 -> 58361 | D35: =D30+D31+D32+D33+D34 -> 76224.72 | E35: =E30+E31+E32+E33+E34 -> 64170 | F35: Total Produits | G35: =G29+G30+G31+G32+G33+G34 -> 61811.79 | H35: 52166 | I35: =I29+I30+I31+I32+I33+I34 -> 83469 | J35: =J29+J30+J31+J32+J33+J34 -> 61820
A37: Bénéfice ou perte | B37: =G35-B35 -> 441.32 | C37: =H35-C35 -> -6195 | D37: =I35-D35 -> 7244.28 | E37: =J35-E35 -> -2350

Sheet Bilan
B4: Bilan 2018
C5: 2016 | F5: 2017 | I5: 2018 | L5: 2013 | P5: 2016 | Q5: 2017 | R5: 2018 | S5: 2013
C6: Brut | D6: Amort | E6: Net | F6: Brut | G6: Amort | H6: Net | I6: Brut | J6: Amort | K6: Net | L6: Brut | M6: Amort | N6: Net
B7: Logiciels | C7: 109 | D7: 109 | E7: 0 | F7: 109 | G7: 109 | H7: =F7-G7 -> 0 | I7: 109 | J7: 109 | K7: =I7-J7 -> 0 | L7: 109 | M7: 109 | N7: 0 | O7: Fonds associatifs | P7: 3002.41 | Q7: 3002 | R7: 3002 | S7: 3002
B8: Investissement de création | C8: =5745.3+135 -> 5880.3 | E8: =C8-D8 -> 5880.3 | F8: =5745+135 -> 5880 | H8: 5880 | I8: 5880 | K8: =I8-J8 -> 5880
B9: Site internet | E9: =C9-D9 -> 0 | F9: 1820 | H9: =F9-G9 -> 1820 | I9: 1820 | J9: 603 | K9: 1217 | L9: 4658 | N9: =L9-M9 -> 4658 | O9: Autres réserves | P9: 13029.65 | Q9: 13030 | R9: 13030 | S9: 13030
B10: Total immobilisations incorporelles | C10: =SUM(C7:C9) -> 5989.3 | D10: 109 | E10: 5880.3 | F10: =SUM(F7:F9) -> 7809 | G10: 109 | H10: 7700 | I10: =SUM(I7:I9) -> 7809 | J10: =SUM(J7:J9) -> 712 | K10: 7097 | L10: 4767 | M10: 109 | N10: 4658
B11: Aménagements divers | C11: 6674.79 | D11: 2491.24 | E11: =C11-D11 -> 4183.55 | F11: 6675 | G11: 3408 | H11: =F11-G11 -> 3267 | I11: 11917 | J11: 4627 | K11: =I11-J11 -> 7290 | L11: 4265 | M11: 209 | N11: 4056 | O11: Report à nouveau créditeur | P11: 10797.22 | Q11: 11238 | R11: 5045 | S11: 6478
B12: Matériel de bureau et info | C12: 927.92 | D12: 927.92 | E12: =C12-D12 -> 0 | F12: 928 | G12: 928 | H12: =F12-G12 -> 0 | I12: 928 | J12: 928 | K12: =I12-J12 -> 0 | L12: 928 | M12: 517 | N12: 411 | O12: Résultat de l'exercice | P12: 441 | Q12: -6193 | R12: 7243 | S12: 1500
B13: Mobilier | C13: 1138.2 | D13: 706.43 | E13: 431.77 | F13: 1138 | G13: 906 | H13: 232 | I13: 1781 | J13: 1040 | K13: 741 | L13: 1138 | M13: 106 | N13: 1032 | O13: Total Fonds propres | P13: =SUM(P7:P12) -> 27270.28 | Q13: =SUM(Q7:Q12) -> 21077 | R13: =SUM(R7:R12) -> 28320
B14: Total immobilisations corporelles | C14: =SUM(C11:C13) -> 8740.91 | D14: 4125.59 | E14: 4615.32 | F14: =SUM(F11:F13) -> 8741 | G14: 5242 | H14: 3499 | I14: =SUM(I11:I13) -> 14626 | J14: =SUM(J11:J13) -> 6595 | K14: 8031 | L14: 6331 | M14: 832 | N14: 5499 | O14: Fonds sur dons manuels | P14: 1500 | Q14: 5405 | R14: 3076 | S14: 633
S15: =SUM(S7:S14) -> 24643
B16: Stocks et encours | E16: 200 | H16: 200 | K16: 200 | N16: 200 | O16: Total fonds dédiés | P16: =P14+P15 -> 1500 | Q16: =Q14+Q15 -> 5405 | R16: 3076
B17: Total stocks | E17: =E16 -> 200 | H17: =H16 -> 200 | K17: =K16 -> 200 | N17: =N16 -> 200 | O17: Dettes fournisseurs | P17: 1944 | Q17: 3840 | R17: 2802 | S17: 3640
B18: Subvention à recevoir région | E18: 1800 | H18: 1800 | K18: 1800 | N18: 1800
B19: Subvention à recevoir département | K19: 4320 | N19: 6000 | O19: Dettes fiscales et sociales | P19: 6448 | Q19: 6436 | R19: 4795 | S19: 5797
B20: Subvention à recevoir Com Com Nay | E20: 1600 | H20: 1600 | K20: 2000
B21: Produits à recevoir ( dont part. Kdo artistes) | E21: 4990.2 | H21: =2605+79 -> 2684 | K21: 2780 | N21: 2628
B22: Total créances | E22: =SUM(E18:E21) -> 8390.2 | H22: =SUM(H18:H21) -> 6084 | K22: =SUM(K18:K21) -> 10900 | N22: =SUM(N18:N21) -> 10428 | O22: Autres dettes | P22: 1622 | Q22: 1960 | R22: 428 | S22: 346
B24: Banque CIC | E24: 9031.33 | H24: 9742 | K24: 10316 | N24: 3861 | O24: Produits constatés d'avance | P24: 680 | Q24: 372 | R24: 2264 | S24: 420
B25: Livret A | E25: 10576.54 | H25: 10577 | K25: 4201 | N25: 8588 | O25: Adhésions payées d'avance | P25: 380 | Q25: 114 | R25: 489 | S25: 324
B26: Caisse | E26: 465.23 | H26: 716 | K26: 736 | N26: 26
B27: Total disponibilités | E27: =SUM(E24:E26) -> 20073.1 | H27: =SUM(H24:H26) -> 21035 | K27: 15253 | N27: =SUM(N24:N26) -> 12475 | O27: Total dettes et PCA | P27: =SUM(P17:P26) -> 11074 | Q27: =SUM(Q17:Q26) -> 12722 | R27: =SUM(R17:R26) -> 10778 | S27: =SUM(S17:S26) -> 10527
B28: charges constatées d'avance | E28: 685 | H28: 686 | K28: 693 | N28: 1910
B29: Total Charges constatées d'avance | E29: =E28 -> 685 | H29: =H28 -> 686 | K29: =K28 -> 693 | N29: =N28 -> 1910
B31: TOTAL ACTIF | C31: =C10+C14+C17+C22+C27+C29 -> 14730.21 | D31: 4234.59 | E31: 39843.92 | F31: =F10+F14+F17+F22+F27+F29 -> 16550 | G31: 5351 | H31: 39204 | I31: =I10+I14+I17+I22+I27+I29 -> 22435 | J31: 7307 | K31: 42174 | L31: 11098 | M31: 941 | N31: 35170 | O31: TOTAL PASSIF | P31: =P13+P16+P27 -> 39844.28 | Q31: =Q13+Q16+Q27 -> 39204 | R31: =R13+R16+R27 -> 42174 | S31: =S27+S15 -> 35170 | U31: =H31-Q31 -> 0
